[Event "4NCL Div 2 2024-25"]
[Site "England"]
[Date "2025.02.15"]
[Round "5.28"]
[White "Hughes, Roy"]
[Black "Jones, Steven A"]
[Result "0-1"]
[Annotator "TA"]
[ECO "A48"]
[WhiteElo "2008"]
[BlackElo "2175"]
[PlyCount "106"]
[EventDate "2024.11.23"]
[EventType "team-tourn"]
[EventCountry "ENG"]
[SourceTitle "playchess.com"]
[Source "ChessBase"]
[SourceQuality "1"]
[TimeControl "40/6000+30:3000+30"]

{[%evp 11,106,4,10,1,4,-8,14,7,13,-11,-9,-18,13,6,10,10,8,6,17,14,12,-34,24,39,31,41,40,25,11,18,27,25,9,10,12,2,16,9,19,-167,-186,-194,-189,-179,-179,-235,-234,-332,-13,-13,-13,-12,-13,-15,-19,-29,-12,-23,0,0,0,-75,0,-23,-14,-20,-29,-20,-16,-22,0,-12,-12,-38,0,0,0,-43,-21,-18,-18,-49,0,0,0,0,0,0,721,0,146,0,0,0,0,-29996,-29997]} 1. d4 {[%emt 0:10:11]} Nf6 {[%emt 0:10:31]} 2. Nf3 {[%emt 0:00:52]} g6 {[%emt 0:00:22]} 3. Bf4 {[%emt 0:00:55]} Bg7 {[%emt 0:00:11]} 4. e3 {[%emt 0:01:00]} O-O {[%emt 0:00:15]} 5. Be2 {[%emt 0:01:09]} d6 {[%emt 0:00:25]} 6. O-O {[%emt 0:01:17]} c5 {[%emt 0:00:51]} 7. c3 {[%emt 0:00:30] A48: 1 d4 Nf6 2 Nf3 g6: Torre, London and Colle Systems.} b6 {[%emt 0:01:01]} 8. a4 {[%emt 0:03:43][%cal Oa4a5]} a6 {[%emt 0:00:44]} 9. h3 {[%emt 0:08:11] The position is equal.} Bb7 {[%emt 0:02:43]} 10. Nfd2 {[%emt 0:05:25]} Nc6 $146 {[%emt 0:10:59]} ({Predecessor:} 10... Nbd7 11. Bf3 Qc7 12. Bxb7 Qxb7 13. Na3 Rfc8 14. Qb3 Rab8 15. Ndc4 b5 16. axb5 axb5 17. Nxd6 exd6 18. Bxd6 {0-1 Mueller,T-Mai,P (2195) Hermannen op 1997 (4)}) 11. Bf3 {[%emt 0:02:12]} cxd4 {[%emt 0:02:47]} 12. exd4 {[%emt 0:02:21]} d5 {[%emt 0:04:43]} 13. Na3 {[%emt 0:08:37]} Rc8 {[%emt 0:05:40]} 14. Nc2 {[%emt 0:03:44]} Qd7 {[%emt 0:03:18]} 15. Ne1 {[%emt 0:01:19]} Qf5 {[%emt 0:05:28]} 16. Bh2 {[%emt 0:00:23]} (16. Be3 $11 {should be considered.}) 16... a5 {[%emt 0:05:42]} (16... e5 $15) 17. Be2 $11 {[%emt 0:08:47]} e5 {[%emt 0:02:38]} 18. dxe5 {[%emt 0:02:26]} Nxe5 {[%emt 0:00:26]} 19. Ndf3 {[%emt 0:11:21]} Nc4 {[%emt 0:04:36]} 20. Nd4 {[%emt 0:02:23]} Qd7 {[%emt 0:02:13]} 21. Qc2 {[%emt 0:03:42]} Ne4 {[%emt 0:01:14]} 22. Nef3 {[%emt 0:00:15]} Rfe8 {[%emt 0:05:17]} 23. Rfd1 {[%emt 0:07:25]} Qe7 {[%emt 0:03:09]} 24. Bf1 {[%emt 0:01:44]} Bh6 {[%emt 0:05:22][%cal Oc4e3]} 25. Rab1 $2 {[%emt 0:04:37] [#]} (25. Re1 $11) 25... Nxf2 $1 $19 {[%emt 0:01:27]} 26. Re1 {[%emt 0:02:38] [#]} (26. Qxf2 Be3 27. Bg3 Bxf2+ $19) 26... Ne4 $1 {[%emt 0:00:33]} 27. Bxc4 {[%emt 0:01:30]} dxc4 {[%emt 0:01:24]} 28. Nb5 {[%emt 0:00:23]} (28. Re2 $142) 28... Qc5+ {[%emt 0:01:37]} 29. Nfd4 {[%emt 0:00:29]} (29. Nbd4 {is a better defense.}) 29... Bc6 $2 {[%emt 0:02:46] A strong pair of Bishops.} ({Black should play} 29... Nd2 $19 {( -> ...Qg5)} 30. Nd6 Qd5 31. Nxb7 Nxb1 (31... Qxb7 32. Rbd1 $17) 32. Rxb1 Be3+ (32... Qxb7 $2 33. Bg3 $19) 33. Kh1 Qxb7) 30. Na7 $11 {[%emt 0:01:40] [#]} f5 $1 {[%emt 0:04:13]} 31. Nxc8 {[%emt 0:05:02]} (31. Rbd1 Bb7) 31... Rxc8 {[%emt 0:00:13]} 32. Rbd1 {[%emt 0:00:43] White is weak on the light squares} Re8 {[%emt 0:04:16][%mdl 1024] Black has compensation.} 33. Re2 {[%emt 0:03:16]} Bb7 {[%emt 0:04:04]} 34. Rf1 {[%emt 0:00:44]} Bg7 {[%emt 0:01:15]} 35. Rd1 {[%emt 0:00:33]} g5 {[%emt 0:03:04]} 36. Ree1 {[%emt 0:01:12]} (36. Bg3 $1 $11) 36... Rd8 {[%emt 0:02:08]} (36... f4 $17) 37. Qe2 {[%emt 0:03:39]} Bxd4+ {[%emt 0:02:46]} (37... f4 {seems wilder.} 38. Kf1 Bxd4 39. Rxd4 Rxd4 40. cxd4 Qd5) 38. cxd4 {[%emt 0:00:40]} Rxd4 {[%emt 0:00:05]} 39. Rxd4 {[%emt 0:01:05]} Qxd4+ {[%emt 0:00:07]} 40. Qe3 {[%emt 0:00:15]} Qxb2 {[%emt 0:02:05]} (40... Qxe3+ {simplifies} 41. Rxe3 f4 42. Re1 Kf7) 41. Bc7 {[%emt 0:50:57]} c3 {[%emt 0:57:47]} 42. Bxb6 {[%emt 0:00:00]} c2 {[%emt 0:00:00]} (42... f4 $5 43. Qd4 Nd6 $11) 43. Bd4 {[%emt 0:00:00]} Qa2 {[%emt 0:00:00][%cal Of5f4]} 44. Ra1 {[%emt 0:00:00]} Qc4 {[%emt 0:00:00] Strongly threatening ...f4.} 45. Bb2 $1 {[%emt 0:00:00]} Bc6 {[%emt 0:00:00][%cal Oh7h6]} 46. Kh2 {[%emt 0:00:00]} Qc5 {[%emt 0:00:00]} (46... Bxa4 $2 {perishes.} 47. Qa7 $18) (46... Qb4 $1 $15 47. Be5 Qd2 (47... Bxa4 48. Qa7 $16) 48. Qb3+ Qd5 49. Qb8+ Kf7) 47. Qb3+ {[%emt 0:00:00]} Bd5 {[%emt 0:00:00]} 48. Qb8+ {[%emt 0:00:00]} Kf7 {[%emt 0:00:00] Active counter play!} 49. Qh8 {[%emt 0:00:00]} Qf2 $2 {[%emt 0:00:15][%mdl 8192]} (49... Qd6+ $11 50. Kg1 (50. Be5 Qf8 $11) 50... Nf6 51. Bxf6 Qxf6 52. Qxh7+ Kf8) 50. Qxh7+ $2 {[%emt 0:00:00]} (50. Qg7+ $18 Ke8 51. Qe5+ (51. Qxh7 Nd6 $15) 51... Kd7 52. Qxd5+ Ke8 53. Qb5+ (53. Qxa5 Qf4+ 54. Kg1 Qf2+ 55. Kh1 g4 $18) 53... Kd8 54. Qd3+ (54. Qxa5+ Kd7 $18) 54... Ke8 55. Rf1) 50... Ke6 {[%emt 0:00:53]} (50... Ke8 $11 {keeps the balance.}) 51. Qg6+ {[%emt 0:01:09]} (51. Qg8+ $16 Kd6 52. Qd8+ Kc5 53. Qxa5+ Kc6 54. Qa8+ Kc5 55. Qa7+ Kd6 56. Qxf2 Nxf2 57. Ba3+ Ke5 58. Re1+ Be4 59. Re2) 51... Kd7 {[%emt 0:00:19]} 52. Be5 {[%emt 0:01:46] Repels Qg3+} Nf6 {[%emt 0:02:09][%csl Gd5][%cal Rf2g2] Successful Defense Black Some like it hot} 53. Qxg5 {[%emt 0:01:20][%mdl 8192] [#]} (53. Bxf6 $2 Qxg2#) (53. Qg7+ $11 Ke8 54. Qg6+ (54. Qxf6 $2 Qxg2#) 54... Kd7 55. Qg7+) 53... Ng4+ $1 {[%emt 0:00:09][%mdl 512] What a bad dream for White.   Weighted Error Value: White=0.41/Black=0.32  Loses game:     	White=2     	Black=1      Missed win:     	White=1     	Black=1      Mistake:       	White=4     	Black=4      Inaccurate:     	White=3     	Black=2      OK:         	White=14    	Black=10     Best:        	White=2     	Black=1      Strong:       	White=1     	Black=1      Brilliant:      	---       	Black=2} 0-1

[Event "4NCL Div 2 2024-25"]
[Site "England"]
[Date "2025.02.15"]
[Round "5.29"]
[White "Saunders, Aron"]
[Black "Moore, Gerald"]
[Result "1-0"]
[Annotator "TA"]
[ECO "B30"]
[WhiteElo "2106"]
[BlackElo "2033"]
[PlyCount "63"]
[EventDate "2024.11.23"]
[EventType "team-tourn"]
[EventCountry "ENG"]
[SourceTitle "playchess.com"]
[Source "ChessBase"]
[SourceQuality "1"]
[TimeControl "40/6000+30:3000+30"]

{[%evp 9,63,31,29,27,24,31,29,29,38,15,15,23,5,9,29,21,12,10,18,23,74,76,69,42,124,131,132,129,167,169,193,181,183,168,168,109,149,132,133,133,127,118,229,221,306,297,295,300,323,325,325,323,325,325,395,395]} 1. e4 {[%emt 0:10:02][%cal Be2e4,Be4e5][%mdl 32]} c5 {[%emt 0:10:09]} 2. Nf3 {[%emt 0:00:05]} Nc6 {[%emt 0:00:14]} 3. Bb5 {[%emt 0:00:04]} Nf6 {[%emt 0:00:09]} 4. Nc3 {[%emt 0:00:06]} g6 {[%emt 0:00:24]} 5. e5 {[%emt 0:00:38]} Ng4 {[%emt 0:00:12]} 6. Qe2 {[%emt 0:00:19] B30: Sicilian: 2...Nc6 3 Bb5, lines without ...g6.} Bg7 {[%emt 0:00:22]} 7. Bxc6 {[%emt 0:00:47]} dxc6 {[%emt 0:00:13]} 8. O-O {[%emt 0:01:20] White has an edge.} O-O {[%emt 0:08:15]} 9. h3 {[%emt 0:02:17]} Nh6 {[%emt 0:00:10]} 10. Ne4 {[%emt 0:00:09]} b6 {[%emt 0:10:46]} 11. c3 {[%emt 0:02:18]} a5 $146 {[%emt 0:27:18]} ({Predecessor:} 11... Qd5 12. d3 Nf5 13. Re1 Ba6 14. c4 Qd7 15. a4 Rad8 16. Ra3 Bc8 17. a5 h6 {1-0 Offenborn,H (2327)-Zlatariu,M (2369) Victor Costin Memorial email 2008}) 12. Rd1 {[%emt 0:07:13]} Ba6 {[%emt 0:03:36]} 13. d3 {[%emt 0:01:23][%cal Bd2d3,Bd3d4][%mdl 32]} Qd7 {[%emt 0:01:27]} 14. Bf4 {[%emt 0:07:35]} f5 {[%emt 0:07:51]} (14... Rad8 $11) 15. Neg5 $16 {[%emt 0:04:23] and e6 should not be overlooked} e6 {[%emt 0:08:25]} 16. Qc2 {[%emt 0:06:12]} Rfe8 {[%emt 0:03:55]} (16... Nf7 $14) 17. c4 $1 {[%emt 0:01:20]} Nf7 {[%emt 0:03:44] [#]} 18. d4 $1 {[%emt 0:03:35]} Nxg5 {[%emt 0:00:43]} 19. Bxg5 {[%emt 0:00:22]} Qc7 {[%emt 0:06:04]} 20. dxc5 {[%emt 0:01:22]} bxc5 {[%emt 0:00:02] Black is weak on the dark squares} 21. Qc3 {[%emt 0:01:00]} h6 {[%emt 0:00:41]} 22. Be3 {[%emt 0:00:34]} (22. Bf6 $18) 22... Bf8 {[%emt 0:01:05]} 23. h4 $36 {[%emt 0:03:09][%mdl 2048] White is in control. White is more active.} Red8 {[%emt 0:00:58]} 24. a4 {[%emt 0:03:54]} Rab8 {[%emt 0:02:42]} 25. b3 {[%emt 0:01:16]} Rb7 {[%emt 0:02:40] [#]} (25... Kh7 $16 {was worth a try.} 26. Rac1 Be7) 26. Qc2 $1 $18 {[%emt 0:09:11]} Qb8 {[%emt 0:07:34]} 27. Rxd8 {[%emt 0:00:59]} Qxd8 {[%emt 0:00:02]} 28. Rd1 {[%emt 0:00:15]} Rd7 {[%emt 0:01:50]} 29. Rxd7 {[%emt 0:00:54]} Qxd7 {[%emt 0:00:02]} 30. Qd2 {[%emt 0:00:14]} Qxd2 {[%emt 0:01:36]} 31. Bxd2 {[%emt 0:00:08]} Kf7 {[%emt 0:00:53]} 32. Bxa5 {[%emt 0:00:13] Weighted Error Value: White=0.06 (flawless) /Black=0.24 (precise)   Mistake:       	White=1     	Black=3      Inaccurate:     	White=1     	Black=2      OK:         	White=10    	Black=10     Best:        	White=2     	Black=1      Strong:       	White=3     	---} 1-0

[Event "4NCL Div 2 2024-25"]
[Site "England"]
[Date "2025.02.15"]
[Round "5.30"]
[White "Gibbs, Dominic V"]
[Black "Hng, Mei-Xian Eunice"]
[Result "1-0"]
[Annotator "TA"]
[ECO "C00"]
[WhiteElo "1980"]
[BlackElo "2082"]
[PlyCount "41"]
[EventDate "2024.11.23"]
[EventType "team-tourn"]
[EventCountry "ENG"]
[SourceTitle "playchess.com"]
[Source "ChessBase"]
[SourceQuality "1"]
[TimeControl "40/6000+30:3000+30"]

{[%evp 21,41,-45,-40,-50,-21,-37,-12,-28,-25,-41,45,14,16,18,50,14,140,115,316,337,2762,2729]} 1. Nf3 {[%emt 0:10:08]} Nf6 {[%emt 0:10:50]} 2. g3 {[%emt 0:00:08]} d5 {[%emt 0:01:31]} 3. Bg2 {[%emt 0:00:20]} e6 {[%emt 0:01:13]} 4. O-O {[%emt 0:00:21]} Be7 {[%emt 0:00:53]} 5. d3 {[%emt 0:00:32]} O-O {[%emt 0:03:16]} 6. Nbd2 {[%emt 0:00:11][%cal Bb1d2,Bd2f1,Bf1e3,Be3g4][%mdl 32]} c5 {[%emt 0:03:37]} 7. e4 {[%emt 0:00:28]} Nc6 {[%emt 0:03:19]} 8. Re1 {[%emt 0:00:17]} Qc7 {[%emt 0:01:02]} 9. e5 {[%emt 0:05:13]} Nd7 {[%emt 0:02:11]} 10. Qe2 {[%emt 0:00:24]} b5 {[%emt 0:01:47]} 11. Nf1 {[%emt 0:02:12]} a5 {[%emt 0:04:28]} 12. Bf4 {[%emt 0:05:37] C00: French: Unusual White 2nd moves.} Re8 {[%emt 0:02:03]} 13. h4 {[%emt 0:01:06]} Ba6 {[%emt 0:04:05]} 14. Ne3 {[%emt 0:03:13][%cal Oe3d5] The position is equal.} Nb6 {[%emt 0:05:13]} (14... Ncxe5 15. Nxe5 (15. Nxd5 exd5 16. Bxe5 Qb7 $17) 15... Nxe5 16. Nxd5 exd5 17. Qxe5 $11 (17. Bxe5 Qd7 $11)) 15. Ng5 $146 {[%emt 0:06:51]} ({Predecessor:} 15. Ng4 b4 16. Qd2 c4 17. Nf6+ Bxf6 18. exf6 e5 19. Bg5 Qd6 20. fxg7 Kxg7 21. d4 {1-0 Hillarp Persson,T (2543)-Vas,P (2297) Oslo Sveins op 4th 2011 (3)}) 15... Bxg5 {[%emt 0:24:19]} ({Black should play} 15... h6 $1 $15 16. Qh5 hxg5 17. hxg5 g6 (17... Nxe5 $2 {perishes.} 18. Ng4 $18)) 16. hxg5 $14 {[%emt 0:00:47]} Ne7 {[%emt 0:09:45]} 17. Qh5 {[%emt 0:07:44]} Ng6 $1 {[%emt 0:03:12][%cal Oa6b7]} 18. Ng4 {[%emt 0:05:23] Bf3 is in the air} Kh8 {[%emt 0:12:42] [#]} (18... Bb7 $11) 19. Bf3 $1 $16 {[%emt 0:06:18] and Kg2 should not be overlooked White is more active.} Rg8 $2 {[%emt 0:06:12] [#]} (19... Rec8 $16) 20. Kg2 $1 $18 {[%emt 0:18:27] White wants to mate with Rh1.} f6 $2 {[%emt 0:00:58] [#]} (20... Nd7 21. Rh1 Ndf8) 21. Qxg6 $1 {[%emt 0:01:58] White took control after the opening.   Weighted Error Value: White=0.03 (flawless) /Black=1.06  Loses game:     	---       	Black=1      Mistake:       	---       	Black=3      Inaccurate:     	White=1     	Black=1      OK:         	White=2     	Black=2      Best:        	White=2     	---        Strong:       	White=2     	Black=1} 1-0

[Event "4NCL Div 2 2024-25"]
[Site "England"]
[Date "2025.02.15"]
[Round "5.31"]
[White "Turner, Lewis A"]
[Black "Gilmore, Simon N"]
[Result "1-0"]
[Annotator "TA"]
[ECO "B12"]
[WhiteElo "1984"]
[BlackElo "1959"]
[PlyCount "57"]
[EventDate "2024.11.23"]
[EventType "team-tourn"]
[EventCountry "ENG"]
[SourceTitle "playchess.com"]
[Source "ChessBase"]
[SourceQuality "1"]
[TimeControl "40/6000+30:3000+30"]

{[%evp 9,57,24,22,0,31,28,36,0,27,15,25,-19,-26,-28,-22,-26,0,-25,32,30,27,27,43,12,31,22,59,56,59,0,65,71,51,37,172,146,290,266,270,247,314,312,465,444,466,461,2028,1989,2504,2160]} 1. e4 {[%emt 0:10:05]} c6 {[%emt 0:10:05]} 2. d4 {[%emt 0:00:05]} d5 {[%emt 0:00:05]} 3. e5 {[%emt 0:00:03]} Bf5 {[%emt 0:00:15]} 4. Nd2 {[%emt 0:00:11]} e6 {[%emt 0:00:16]} 5. Nb3 {[%emt 0:00:05]} Nd7 {[%emt 0:01:31]} 6. Be2 {[%emt 0:01:56] B12: Caro-Kann: Advance Variation.} Ne7 {[%emt 0:00:28][%cal Oc6c5]} 7. Nf3 {[%emt 0:00:30]} Bg4 {[%emt 0:02:16]} 8. Bg5 $146 {[%emt 0:03:50] White is slightly better.} ({Predecessor:} 8. O-O Nf5 9. h3 Bxf3 10. Bxf3 g6 11. Re1 h5 12. Be2 f6 13. exf6 Qxf6 14. c4 {0-1 Perunovic,M (2602)-Ding,L (2742) Olympiad-41 Tromsoe 2014 (7.1)}) 8... Qb6 {[%emt 0:01:19]} 9. c3 {[%emt 0:08:31]} Nf5 {[%emt 0:02:56][%cal Be7f5,Bf5h4,Bh4g6,Bg6h8][%mdl 32]} 10. Nfd2 {[%emt 0:07:56]} Bxe2 {[%emt 0:01:37]} 11. Qxe2 {[%emt 0:00:06]} h6 {[%emt 0:02:44]} 12. Bf4 {[%emt 0:01:55]} Be7 {[%emt 0:01:17]} 13. O-O {[%emt 0:03:34]} O-O {[%emt 0:01:30]} (13... a5 $11) 14. g4 $14 {[%emt 0:03:04]} Nh4 {[%emt 0:00:36]} 15. Bg3 {[%emt 0:00:28]} c5 {[%emt 0:04:11]} 16. Rab1 {[%emt 0:02:24]} (16. dxc5 {keeps more tension.} Nxc5 17. Nxc5 Qxc5 18. Nb3) 16... Ng6 {[%emt 0:04:49]} 17. f4 {[%emt 0:08:08]} f5 {[%emt 0:14:14]} 18. exf6 {[%emt 0:08:56]} Bxf6 {[%emt 0:01:32][%cal Rc5d4]} 19. Nf3 {[%emt 0:13:04]} (19. f5 $14 exf5 20. gxf5) 19... Rae8 {[%emt 0:08:22]} (19... Be7 $11) 20. Qc2 {[%emt 0:01:45]} Nh8 {[%emt 0:02:46]} 21. g5 {[%emt 0:09:06]} Be7 {[%emt 0:04:54] Loses the game.} ({Black should try} 21... hxg5 $14 22. fxg5 Be7) 22. gxh6 $18 {[%emt 0:00:31]} gxh6 {[%emt 0:00:26]} (22... g6 $16 23. c4 cxd4) 23. Kh1 {[%emt 0:02:00]} c4 {[%emt 0:05:45]} 24. Nbd2 {[%emt 0:00:42][%cal Bb3d2,Bd2f1,Bf1e3][%mdl 32]} Rf5 {[%emt 0:02:06]} 25. Rg1 {[%emt 0:00:45]} Qd8 {[%emt 0:04:44]} (25... Kh7 {might work better.} 26. Nf1 Nf6) 26. Nf1 {[%emt 0:00:47] White is clearly winning.} Nf6 {[%emt 0:10:08]} 27. Ne3 {[%emt 0:01:24] [#] Threatens to win with Bh4+.} Rh5 {[%emt 0:01:08]} (27... Ne4 $142 28. Bh4+ Kf7 29. Bxe7 Rxe7) 28. Bh4+ {[%emt 0:02:00]} Kf8 {[%emt 0:00:36]} 29. Qg2 {[%emt 0:00:26] Weighted Error Value: White=0.12 (very precise) /Black=0.92  Mistake:       	White=1     	Black=6      Inaccurate:     	White=3     	Black=4      OK:         	White=7     	Black=4      Best:        	White=3     	Black=1} 1-0

[Event "4NCL Div 2 2024-25"]
[Site "England"]
[Date "2025.02.15"]
[Round "5.32"]
[White "Latypova, Olga L"]
[Black "Taylor, William J"]
[Result "1/2-1/2"]
[Annotator "TA"]
[ECO "B33"]
[WhiteElo "1831"]
[BlackElo "1994"]
[PlyCount "54"]
[EventDate "2024.11.23"]
[EventType "team-tourn"]
[EventCountry "ENG"]
[SourceTitle "playchess.com"]
[Source "ChessBase"]
[SourceQuality "1"]
[TimeControl "40/6000+30:3000+30"]

{[%evp 24,54,8,13,14,14,15,-6,18,7,13,8,6,0,0,0,0,3,3,0,0,0,0,0,0,0,5,0,0,-6,0,0,0]} 1. e4 {[%emt 0:10:04]} c5 {[%emt 0:10:07]} 2. Nf3 {[%emt 0:00:13][%cal Bg1f3,Bf3d4,Bd4b5,Bb5a3,Ba3c2][%mdl 32]} Nc6 {[%emt 0:00:06]} 3. d4 {[%emt 0:00:22]} cxd4 {[%emt 0:00:06]} 4. Nxd4 {[%emt 0:00:07]} Nf6 {[%emt 0:00:05]} 5. Nc3 {[%emt 0:00:12]} e5 {[%emt 0:00:06]} 6. Ndb5 {[%emt 0:00:29]} d6 {[%emt 0:00:08]} 7. Bg5 {[%emt 0:00:36]} a6 {[%emt 0:00:08]} 8. Na3 {[%emt 0:00:07]} b5 {[%emt 0:00:05]} 9. Nd5 {[%emt 0:00:10]} Be7 {[%emt 0:00:06]} 10. Bxf6 {[%emt 0:00:38]} Bxf6 {[%emt 0:00:08]} 11. c4 {[%emt 0:00:54]} b4 {[%emt 0:00:06]} 12. Nc2 {[%emt 0:00:20]} a5 {[%emt 0:00:04]} 13. Be2 {[%emt 0:02:31] The position is equal.} O-O {[%emt 0:00:19] B33: Sicilian: Pelikan and Sveshnikov Variations.} 14. O-O {[%emt 0:01:22]} Bg5 {[%emt 0:00:10]} 15. Bg4 {[%emt 0:03:23]} Bb7 {[%emt 0:00:41]} 16. Qd3 {[%emt 0:02:32]} Nb8 {[%emt 0:02:41]} 17. a3 {[%emt 0:07:56]} Na6 {[%emt 0:00:46]} 18. axb4 {[%emt 0:02:54]} axb4 {[%emt 0:00:05]} 19. Ncxb4 {[%emt 1:15:10]} Nxb4 {[%emt 0:00:07]} 20. Nxb4 {[%emt 0:00:00]} Qb6 {[%emt 0:03:26]} 21. Nd5 $146 {[%emt 0:00:00]} ({Predecessor:} 21. Na2 Qd4 22. Qxd4 exd4 23. Nb4 Bxe4 24. Bf3 Bxf3 25. gxf3 Rac8 26. Nd3 Rxc4 {½-½ Palencia Morales,W (2362)-Echavarria,J (2283) Feria de las Flores 28th 2021 (5)}) 21... Bxd5 {[%emt 0:00:23]} 22. Qxd5 {[%emt 0:00:00]} Rxa1 {[%emt 0:00:11]} 23. Rxa1 {[%emt 0:00:00]} Qxb2 {[%emt 0:00:18]} 24. Rd1 {[%emt 0:00:00]} Be7 {[%emt 0:03:53]} 25. g3 {[%emt 0:00:00]} Rb8 {[%emt 0:07:11]} 26. Qc6 {[%emt 0:00:00][%cal Oc4c5]} Qb7 {[%emt 0:16:09]} 27. Bd7 {[%emt 0:00:00]} g6 {[%emt 0:06:28] An uneventful encounter.   Weighted Error Value: White=0.02 (flawless) /Black=0.03 (flawless)   OK:         	White=6     	Black=7      Best:        	---       	Black=1} 1/2-1/2